Workbook

Sheet Титульный
A1: SHABLON.TSO.2022
A2: Версия 22.0.1
B4: Информация о плате за техприсоединение к электросетям
B6: Наименование организации | C6: ООО "Газпром энерго"
B7: ИНН | C7: 7736186950
B8: КПП | C8: 860202001
B9: Наименование (описание) обособленного подразделения | C9: ООО "Газпром энерго" Сургутский филиал
B10: Организационно-правовая форма | C10: Общество с ограниченной ответственностью
B11: Вид деятельности | C11: Сетевая компания
B12: Период | C12: 2021
C13: Адрес регулируемой организации
B14: Юридический адрес | C14: 628400, Российская Федерация, Ханты-Мансийский автономный округ, г. Сургут, ул.Ленина, д. 43
B15: Почтовый адрес | C15: 628418, РФ, Тюменская область, Ханты-Мансийский автономный округ-Югра, г. Сургут, ул.Островского, д. 16
C16: Руководитель
B17: Фамилия, имя, отчество | C17: Ракин Сергей Михайлович
B18: Телефон | C18: 8 (3462) 36 21 98
C19: Ответственный за предоставление информации (от регулируемой организации)
B20: Фамилия, имя, отчество | C20: Каримова Лидия Сергеевна
B21: Должность | C21: экономист I категории
B22: Контактный телефон | C22: 8 (3462) 75 19 13
B23: e-mail | C23: L.Karimova@suf.energo.gazprom.ru

Sheet Инструкция
B2: Инструкция по заполнению приложений, направленных письмом Региональной энергетической комиссии Свердловской области (далее – РЭК Свердловской области), разработанных в соответствии с методическими указаниями по определению размера платы за технологическое присоединение к электрическим сетям, утвержденными приказом ФАС России от 29.08.2017 № 1135/17
B3: 1. Ячейки голубого цвета подлежат обязательному заполнению территориальной сетевой организацией (далее – ТСО), ячейки желтого цвета предназначены для заполнения ТСО, ячейки зеленого цвета не подлежат заполнению.
B4: ="2. Показатели в приложениях 1.1, 1.2, 5.1, 5.2 заполняются по заключенным договорам об осуществлении технологического присоединения к электрическим сетям ТСО (далее − договор) "&"по введенным в эксплуатацию объектам электросетевого хозяйства ТСО за периоды "&IF(Титульный!C12="","--- выберите период на листе Титульный.",(Титульный!C12-3)&", "&(Титульный!C12-2)&", "&(Титульный!C12-1)&" годы.") -> 2. Показатели в приложениях 1.1, 1.2, 5.1, 5.2 заполняются по заключенным договорам об осуществлении технологического присоединения к электрическим сетям ТСО (далее − договор) по введенным в эксплуатацию объектам электросетевого хозяйства ТСО за периоды 2018, 2019, 2020 годы.
B5: ="3. Показатели в приложениях 1.1, 1.2, 5.1, 5.2 заполняются раздельно для территорий городских населенных пунктов и для территорий, " & "не относящихся к городским населенным пунктам." -> 3. Показатели в приложениях 1.1, 1.2, 5.1, 5.2 заполняются раздельно для территорий городских населенных пунктов и для территорий, не относящихся к городским населенным пунктам.
B6: 4. Показатели в приложениях 2.1, 2.2, 2.3, 3.1, 3.2 заполняются по выполненным договорам за 2018, 2019, 2020 годы.
B7: ="5. В случае если ТСО за периоды " &IF(Титульный!C12="","--- выберите период на листе Титульный --- ",(Титульный!C12-3)&", "&(Титульный!C12-2)&", "&(Титульный!C12-1)&" годы ") & "осуществляла деятельность по технологическому присоединению раздельно по постоянной и временной схеме, необходимо дополнительно представить в РЭК Свердловской области информацию о расходах за периоды " &IF(Титульный!C12="","--- выберите период на листе Титульный ---",(Титульный!C12-3)&", "&(Титульный!C12-2)&", "&(Титульный!C12-1)&" годы") & " для установления РЭК Свердловской области стандартизированной тарифной ставки С1, ставки за единицу максиальной мощности C1maxN раздельно для постоянной и для временной схемы." -> 5. В случае если ТСО за периоды 2018, 2019, 2020 годы осуществляла деятельность по технологическому присоединению раздельно по постоянной и временной схеме, необходимо дополнительно представить в РЭК Свердловской области информацию о расходах за периоды 2018, 2019, 2020 годы для установления РЭК Свердловской области стандартизированной тарифной ставки С1, ставки за единицу максиальной мощности C1maxN раздельно для постоянной и для временной схемы.
B8: 6. Приложение 4 к Методическим указаниям по определению размера платы за технологическое присоединение к электрическим сетям, утвержденным приказом ФАС России от 29.08.2017 № 1135/17 заполняется РЭК Свердловской области и не подлежит заполнению ТСО.
B10: I. Заполнение приложений 1.1, 1.2.
B11: 1) Приложение 1.1 заполняется для территорий городских населенных пунктов.
B12: 2) Приложение 1.2 заполняется для территорий, не относящихся к городским населенным пунктам.
B13: 3) В графе 2 указываются характеристики объекта электросетевого хозяйства/средства коммерческого учета электрической энергии (мощности), введенного в эксплуатацию (наименование мероприятия, выполненного ТСО в соответствии с выданными техническими условиями).
B14: 4) В графах 3, 7, 11 указывается уровень напряжения, соответствующий уровню напряжения объекта электросетевого хозяйства/средства коммерческого учета электрической энергии (мощности), введенного в эксплуатацию (наименование мероприятия, выполненного ТСО в соответствии с выданными техническими условиями).
B15: 5) В графах 4, 8, 12 указывается протяженность воздушной или кабельной линий электропередачи (далее – ЛЭП) в километрах по трассе (без учета количества кабелей (проводов) в линии), а также количество пунктов секционирования и точек учета электрической энергии (мощности) в штуках.
B16: 6) В графах 5, 9, 13 указывается размер присоединенной максимальной мощности энергопринимающего устройства заявителя согласно договору.
B17: 8) В графах 6, 10, 14 указываются расходы на строительство введенных в эксплуатацию объектов электросетевого хозяйства ТСО, а также на обеспечение средствами коммерческого учета электрической энергии (мощности), в соответствии с учетной политикой ТСО (например: стоимость принимаемых основных фондов согласно формам КС-14, КС-11).
B18: 9) В графах 4, 6, 8, 10, 12, 14, 16, 18 указывается размерность показателей с учётом обязательного заполнения трех знаков после запятой
B19: 10) Графы 15-18 заполняются ТСО только в случае, если за 3 предыдущих года ТСО не осуществлялось строительство объектов электросетевого хозяйства, а также обеспечение средствами коммерческого учета электрической энергии (мощности), в отношении которых устанавливаются стандартизированные тарифные ставки, по планируемым расходам, определенным по сметам, выполненным с применением сметных нормативов.
B20: ="11) За периоды " &IF(Титульный!C12="","--- выберите период на листе Титульный --- ",(Титульный!C12-3)&", "&(Титульный!C12-2)&", "&(Титульный!C12-1)&" годы ") & "всем ТСО необходимо представить в РЭК Свердловской области документы, подтверждающие расходы на выполнение мероприятий по строительству объектов электросетевого хозяйства ТСО, а также на обеспечение средствами коммерческого учета электрической энергии." -> 11) За периоды 2018, 2019, 2020 годы всем ТСО необходимо представить в РЭК Свердловской области документы, подтверждающие расходы на выполнение мероприятий по строительству объектов электросетевого хозяйства ТСО, а также на обеспечение средствами коммерческого учета электрической энергии.
B22: II. Заполнение приложений 2.1, 2.2, 2.3.
B23: ="1) Приложение 2.1 заполняется за " &IF(Титульный!C12="","--- выберите период на листе Титульный.",(Титульный!C12-3)&" год.") -> 1) Приложение 2.1 заполняется за 2018 год.
B24: ="2) Приложение 2.2 заполняется за " &IF(Титульный!C12="","--- выберите период на листе Титульный.",(Титульный!C12-2)&" год.") -> 2) Приложение 2.2 заполняется за 2019 год.
B25: ="3) Приложение 2.3 заполняется за " &IF(Титульный!C12="","--- выберите период на листе Титульный.",(Титульный!C12-1)&" год.") -> 3) Приложение 2.3 заполняется за 2020 год.
B26: 4) В графах 3-6 пункта 1 указываются расходы ТСО на выполнение мероприятий по подготовке и выдаче технических условий заявителю в тыс. рублей.
B27: 5) В графах 3-6 пунктов 2.1, 2.2 указываются расходы ТСО на выполнение мероприятий по проверке сетевой организацией выполнения заявителем технических условий в тыс. рублей.
B28: 6) В графах 8-11 указывается количество технологических присоединений в соответствии с выполненными договорами в штуках.
B29: 7) В графах 13-16 указывается объем присоединенной максимальной мощности в соответствии с выполненными договорами в кВт.
B30: ="8) За периоды " &IF(Титульный!C12="","--- выберите период на листе Титульный --- ",(Титульный!C12-3)&", "&(Титульный!C12-2)&", "&(Титульный!C12-1)&" годы ") & "всем ТСО необходимо представить в РЭК Свердловской области документы, подтверждающие расходы, количество техприсоединений, объем максимальной мощности." -> 8) За периоды 2018, 2019, 2020 годы всем ТСО необходимо представить в РЭК Свердловской области документы, подтверждающие расходы, количество техприсоединений, объем максимальной мощности.
B32: III. Заполнение приложений 3.1, 3.2.
B33: 1) Приложение 3.1 заполняется ТСО по мероприятию: подготовка и выдача сетевой организацией технических условий заявителю.
B34: 2) Приложение 3.2 заполняется ТСО по мероприятию: проверка сетевой организацией выполнения заявителем технических условий.
B35: 3) В графах 3-5 указываются расходы на выполнение мероприятий по технологическому присоединению с разбивкой по каждому показателю в тыс. рублей в соответствии с учетной политикой ТСО и бухгалтерской отчетностью.
B36: 4) В графах 3-5 указывается размерность показателей с учётом обязательного заполнения трех знаков после запятой.
B37: ="5) За периоды " &IF(Титульный!C12="","--- выберите период на листе Титульный --- ",(Титульный!C12-3)&", "&(Титульный!C12-2)&", "&(Титульный!C12-1)&" годы ") & "всем ТСО необходимо представить в РЭК Свердловской области документы, подтверждающие расходы по технологическому присоединению." -> 5) За периоды 2018, 2019, 2020 годы всем ТСО необходимо представить в РЭК Свердловской области документы, подтверждающие расходы по технологическому присоединению.
B39: IV. Заполнение приложений 5.1, 5.2.
B40: 1) Приложение 5.1 заполняется для территорий городских населенных пунктов.
B41: 2) Приложения 5.2 заполняется для территорий, не относящихся к городским населенным пунктам.
B42: 3) В графе 2 указываются характеристики объекта электросетевого хозяйства/средства коммерческого учета электрической энергии (мощности), введенного в эксплуатацию (наименование мероприятия, выполненного ТСО в соответствии с выданными техническими условиями).
B43: 4) В графах 3, 6, 9 указывается уровень напряжения, соответствующий уровню напряжения объекта электросетевого хозяйства/средства коммерческого учета электрической энергии (мощности), введенного в эксплуатацию (наименование мероприятия, выполненного ТСО в соответствии с выданными техническими условиями).
B44: 5) В графах 4, 7, 10 указывается протяженность ЛЭП в километрах по трассе (без учета количества кабелей (проводов) в линии) с учётом обязательного заполнения трех знаков после запятой, а также количество пунктов секционирования, точек учета электрической энергии (мощности) в штуках.
B45: 6) В графах 5, 8, 11 указывается размер присоединённой максимальной мощности энергопринимающего устройства заявителя согласно договору.

Sheet Прил. № 1.1 город
G11: Приложение № 1.1 к Методическим указаниям по определению размера платы за технологическое присоединение к электрическим сетям
A12: dd_hide/show | B12: hide | C12: range_name | D12: address_title | E12: address_svod | G12: Расходы на строительство введенных в эксплуатацию объектов электросетевого хозяйства для целей технологического присоединения и для целей реализации иных мероприятий инвестиционной программы территориальной сетевой организации, а также на обеспечение средствами коммерческого учета электрической энергии (мощности) (заполняется для территорий городских населенных пунктов)
G13: № п/п | H13: Объект электросетевого хозяйства/Средство коммерческого учета электрической энергии (мощности) | N13: Год ввода объекта 2018 | R13: Год ввода объекта 2019 | V13: Год ввода объекта 2020 | Z13: План*
N14: уровень напряжения, кВ | O14: протяженность (для линий электропередачи), км. / количество (для пунктов секционирования, точек учета ээ), шт. | P14: максимальная мощность, кВт | Q14: расходы на строительство объекта/на обеспечение средствами коммерческого учета электрической энергии (мощности), тыс. руб. | R14: уровень напряжения, кВ | S14: протяженность (для линий электропередачи), км. / количество (для пунктов секционирования, точек учета ээ), шт. | T14: максимальная мощность, кВт | U14: расходы на строительство объекта/на обеспечение средствами коммерческого учета электрической энергии (мощности), тыс. руб. | V14: уровень напряжения, кВ | W14: протяженность (для линий электропередачи), км. / количество (для пунктов секционирования, точек учета ээ), шт. | X14: максимальная мощность, кВт | Y14: расходы на строительство объекта/на обеспечение средствами коммерческого учета электрической энергии (мощности), тыс. руб. | Z14: уровень напряжения, кВ | AA14: протяженность (для линий электропередачи), км. / количество (для пунктов секционирования, точек учета ээ), шт. | AB14: максимальная мощность, кВт | AC14: расходы на строительство объекта/на обеспечение средствами коммерческого учета электрической энергии (мощности), тыс. руб.
A15: ddShPr11City_rstart | G15: 1 | H15: 2 | N15: 3 | O15: 4 | P15: 5 | Q15: 6 | R15: 7 | S15: 8 | T15: 9 | U15: 10 | V15: 11 | W15: 12 | X15: 13 | Y15: 14 | Z15: 15 | AA15: 16 | AB15: 17 | AC15: 18
G16: 1. | H16: СТРОИТЕЛЬСТВО ВОЗДУШНЫХ ЛИНИЙ ЭЛЕКТРОПЕРЕДАЧИ | O16: =SUM(O18:O20) -> 0.000 | P16: =SUM(P18:P20) -> 0.000 | Q16: =SUM(Q18:Q20) -> 0.000 | S16: =SUM(S18:S20) -> 0.000 | T16: =SUM(T18:T20) -> 0.000 | U16: =SUM(U18:U20) -> 0.000 | W16: =SUM(W18:W20) -> 0.000 | X16: =SUM(X18:X20) -> 0.000 | Y16: =SUM(Y18:Y20) -> 0.000 | AA16: =SUM(AA18:AA20) -> 0.000 | AB16: =SUM(AB18:AB20) -> 0.000 | AC16: =SUM(AC18:AC20) -> 0.000
H17: тип опор: | I17: тип провода: | J17: материал провода: | K17: сечение провода: | L17: количество цепей: | M17: уровень напряжения:
B18: 1
B19: 1 | C19: VL | D19: =ROW($D$17) -> 17 | F19: Удалить | G19: =$G$16 & (ROWS($G$18:G19)-2)+1&"." -> 1.1.
B20: 1
H21: Добавить
B22: 1
G23: 2. | H23: СТРОИТЕЛЬСТВО КАБЕЛЬНЫХ ЛИНИЙ ЭЛЕКТРОПЕРЕДАЧИ | O23: =SUM(O25:O27) -> 0.000 | P23: =SUM(P25:P27) -> 0.000 | Q23: =SUM(Q25:Q27) -> 0.000 | S23: =SUM(S25:S27) -> 0.000 | T23: =SUM(T25:T27) -> 0.000 | U23: =SUM(U25:U27) -> 0.000 | W23: =SUM(W25:W27) -> 0.000 | X23: =SUM(X25:X27) -> 0.000 | Y23: =SUM(Y25:Y27) -> 0.000 | AA23: =SUM(AA25:AA27) -> 0.000 | AB23: =SUM(AB25:AB27) -> 0.000 | AC23: =SUM(AC25:AC27) -> 0.000
H24: способ прокладки: | I24: количество жил: | J24: тип изоляции: | K24: сечение провода: | L24: количество кабелей в траншее, канале, туннеле или коллекторе, на галерее или эстакаде, труб в скважине: | M24: уровень напряжения:
B25: 1
B26: 1 | C26: KL | D26: =ROW($D$24) -> 24 | F26: Удалить | G26: =$G$23 & (ROWS($G$25:G26)-2)+1&"." -> 2.1.
B27: 1
H28: Добавить
B29: 1
G30: 3. | H30: СТРОИТЕЛЬСТВО ПУНКТОВ СЕКЦИОНИРОВАНИЯ (РЕКЛОУЗЕРОВ, РАСПРЕДЕЛИТЕЛЬНЫХ ПУНКТОВ, ПЕРЕКЛЮЧАТЕЛЬНЫХ ПУНКТОВ) | O30: =SUM(O32:O34) -> 0.000 | P30: =SUM(P32:P34) -> 0.000 | Q30: =SUM(Q32:Q34) -> 0.000 | S30: =SUM(S32:S34) -> 0.000 | T30: =SUM(T32:T34) -> 0.000 | U30: =SUM(U32:U34) -> 0.000 | W30: =SUM(W32:W34) -> 0.000 | X30: =SUM(X32:X34) -> 0.000 | Y30: =SUM(Y32:Y34) -> 0.000 | AA30: =SUM(AA32:AA34) -> 0.000 | AB30: =SUM(AB32:AB34) -> 0.000 | AC30: =SUM(AC32:AC34) -> 0.000
H31: пункт секционирования: | I31: номинальный ток: | J31: количество ячеек в распределительном или переключательном пункте: | K31: уровень напряжения:
B32: 1
B33: 1 | C33: PS | D33: =ROW($D$31) -> 31 | F33: Удалить | G33: =$G$30 & (ROWS($G$32:G33)-2)+1&"." -> 3.1.
B34: 1
H35: Добавить
B36: 1
G37: 4. | H37: СТРОИТЕЛЬСТВО ТРАНСФОРМАТОРНЫХ ПОДСТАНЦИЙ (ТП), ЗА ИСКЛЮЧЕНИЕМ РАСПРЕДЕЛИТЕЛЬНЫХ ТРАНСФОРМАТОРНЫХ ПОДСТАНЦИЙ (РТП), С УРОВНЕМ НАПРЯЖЕНИЯ ДО 35 КВ | O37: =SUM(O39:O41) -> 0.000 | P37: =SUM(P39:P41) -> 0.000 | Q37: =SUM(Q39:Q41) -> 0.000 | S37: =SUM(S39:S41) -> 0.000 | T37: =SUM(T39:T41) -> 0.000 | U37: =SUM(U39:U41) -> 0.000 | W37: =SUM(W39:W41) -> 0.000 | X37: =SUM(X39:X41) -> 0.000 | Y37: =SUM(Y39:Y41) -> 0.000 | AA37: =SUM(AA39:AA41) -> 0.000 | AB37: =SUM(AB39:AB41) -> 0.000 | AC37: =SUM(AC39:AC41) -> 0.000
H38: уровень напряжения: | I38: количество трансформаторов: | J38: трансформаторная мощность: | K38: тип трансформаторной подстанции:
B39: 1
B40: 1 | C40: TS | D40: =ROW($D$38) -> 38 | F40: Удалить | G40: =$G$37 & (ROWS($G$39:G40)-2)+1&"." -> 4.1.
B41: 1
H42: Добавить
B43: 1
G44: 5. | H44: СТРОИТЕЛЬСТВО РАСПРЕДЕЛИТЕЛЬНЫХ ТРАНСФОРМАТОРНЫХ ПОДСТАНЦИЙ (РТП), С УРОВНЕМ НАПРЯЖЕНИЯ ДО 35 КВ | O44: =SUM(O46:O48) -> 0.000 | P44: =SUM(P46:P48) -> 0.000 | Q44: =SUM(Q46:Q48) -> 0.000 | S44: =SUM(S46:S48) -> 0.000 | T44: =SUM(T46:T48) -> 0.000 | U44: =SUM(U46:U48) -> 0.000 | W44: =SUM(W46:W48) -> 0.000 | X44: =SUM(X46:X48) -> 0.000 | Y44: =SUM(Y46:Y48) -> 0.000 | AA44: =SUM(AA46:AA48) -> 0.000 | AB44: =SUM(AB46:AB48) -> 0.000 | AC44: =SUM(AC46:AC48) -> 0.000
H45: количество трансформаторов: | I45: трансформаторная мощность: | J45: уровень напряжения:
B46: 1
B47: 1 | C47: RTP | D47: =ROW($D$45) -> 45 | F47: Удалить | G47: =$G$44 & (ROWS($G$46:G47)-2)+1&"." -> 5.1.
B48: 1
H49: Добавить
B50: 1
G51: 6. | H51: СТРОИТЕЛЬСТВО ПОДСТАНЦИЙ УРОВНЕМ НАПРЯЖЕНИЯ 35 КВ И ВЫШЕ (ПС) | O51: =SUM(O53:O55) -> 0.000 | P51: =SUM(P53:P55) -> 0.000 | Q51: =SUM(Q53:Q55) -> 0.000 | S51: =SUM(S53:S55) -> 0.000 | T51: =SUM(T53:T55) -> 0.000 | U51: =SUM(U53:U55) -> 0.000 | W51: =SUM(W53:W55) -> 0.000 | X51: =SUM(X53:X55) -> 0.000 | Y51: =SUM(Y53:Y55) -> 0.000 | AA51: =SUM(AA53:AA55) -> 0.000 | AB51: =SUM(AB53:AB55) -> 0.000 | AC51: =SUM(AC53:AC55) -> 0.000
H52: количество трансформаторов: | I52: трансформаторная мощность: | J52: уровень напряжения:
B53: 1
B54: 1 | C54: SP | D54: =ROW($D$52) -> 52 | F54: Удалить | G54: =$G$51 & (ROWS($G$53:G54)-2)+1&"." -> 6.1.
B55: 1
H56: Добавить
B57: 1
G58: 7. | H58: ОБЕСПЕЧЕНИЕ СРЕДСТВАМИ КОММЕРЧЕСКОГО УЧЕТА ЭЛЕКТРИЧЕСКОЙ ЭНЕРГИИ (МОЩНОСТИ) | O58: =SUM(O60:O62) -> 0.000 | P58: =SUM(P60:P62) -> 0.000 | Q58: 0.000 | S58: 0.000 | T58: 0.000 | U58: 0.000 | W58: 0.000 | X58: 0.000 | Y58: 0.000 | AA58: 0.000 | AB58: 0.000 | AC58: 0.000
H59: количество фаз: | I59: тип включения: | J59: уровень напряжения:
B60: 1
B61: 1 | C61: SKU | D61: =ROW($D$59) -> 59 | F61: Удалить | G61: =$G$58 & (ROWS($G$60:G61)-2)+1&"." -> 7.1.
B62: 1
H63: Добавить
B64: 1
G65: * - случае если в субъекте Российской Федерации за 3 предыдущих года не осуществлялось строительство тех объектов электросетевого хозяйства, в отношении которых устанавливаются стандартизированные тарифные ставки либо не осуществлялось обеспечение средствами коммерческого учета электрической энергии (мощности), расчет ставок может производиться исходя из данных за два предыдущих года, в случае отсутствия данных за два года - за предыдущий год, а при отсутствии данных за три года - по планируемым расходам, определенным по сметам, выполненным с применением сметных нормативов.
A66: ddShPr11City_rstop

Sheet Прил. № 1.2 не город
G11: Приложение № 1.2 к Методическим указаниям по определению размера платы за технологическое присоединение к электрическим сетям
A12: dd_name | B12: hide | C12: range_name | D12: address_title | E12: address_svod | G12: Расходы на строительство введенных в эксплуатацию объектов электросетевого хозяйства для целей технологического присоединения и для целей реализации иных мероприятий инвестиционной программы территориальной сетевой организации, а также на обеспечение средствами коммерческого учета электрической энергии (мощности) (заполняется для территорий, не относящихся к городским населенным пунктам)
G13: № п/п | H13: Объект электросетевого хозяйства/Средство коммерческого учета электрической энергии (мощности) | N13: Год ввода объекта 2018 | R13: Год ввода объекта 2019 | V13: Год ввода объекта 2020 | Z13: План*
N14: уровень напряжения, кВ | O14: протяженность (для линий электропередачи), км. / количество (для пунктов секционирования, точек учета ээ), шт. | P14: максимальная мощность, кВт | Q14: расходы на строительство объекта/на обеспечение средствами коммерческого учета электрической энергии (мощности), тыс. руб. | R14: уровень напряжения, кВ | S14: протяженность (для линий электропередачи), км. / количество (для пунктов секционирования, точек учета ээ), шт. | T14: максимальная мощность, кВт | U14: расходы на строительство объекта/на обеспечение средствами коммерческого учета электрической энергии (мощности), тыс. руб. | V14: уровень напряжения, кВ | W14: протяженность (для линий электропередачи), км. / количество (для пунктов секционирования, точек учета ээ), шт. | X14: максимальная мощность, кВт | Y14: расходы на строительство объекта/на обеспечение средствами коммерческого учета электрической энергии (мощности), тыс. руб. | Z14: уровень напряжения, кВ | AA14: протяженность (для линий электропередачи), км. / количество (для пунктов секционирования, точек учета ээ), шт. | AB14: максимальная мощность, кВт | AC14: расходы на строительство объекта/на обеспечение средствами коммерческого учета электрической энергии (мощности), тыс. руб.
A15: ddShPr12Cont_rstart | G15: 1 | H15: 2 | N15: 3 | O15: 4 | P15: 5 | Q15: 6 | R15: 7 | S15: 8 | T15: 9 | U15: 10 | V15: 11 | W15: 12 | X15: 13 | Y15: 14 | Z15: 15 | AA15: 16 | AB15: 17 | AC15: 18
G16: 1. | H16: СТРОИТЕЛЬСТВО ВОЗДУШНЫХ ЛИНИЙ ЭЛЕКТРОПЕРЕДАЧИ | O16: =SUM(O18:O21) -> 0.000 | P16: =SUM(P18:P21) -> 0.000 | Q16: =SUM(Q18:Q21) -> 0.000 | S16: =SUM(S18:S21) -> 0.000 | T16: =SUM(T18:T21) -> 0.000 | U16: =SUM(U18:U21) -> 0.000 | W16: =SUM(W18:W21) -> 0.000 | X16: =SUM(X18:X21) -> 0.000 | Y16: =SUM(Y18:Y21) -> 0.000 | AA16: =SUM(AA18:AA21) -> 0.356 | AB16: =SUM(AB18:AB21) -> 15.000 | AC16: =SUM(AC18:AC21) -> 6108.839
H17: тип опор: | I17: тип провода: | J17: материал провода: | K17: сечение провода: | L17: количество цепей: | M17: уровень напряжения:
B18: 1
C19: VL | D19: =ROW($D$17) -> 17 | E19: VL:2.1.3.1.1.2. | F19: Удалить | G19: =$G$16 & (ROWS($G$18:G19)-2)+1&"." -> 1.1. | H19: железобетонные опоры | I19: изолированный | J19: сталеалюминиевый | K19: до 50 мм2 включительно | L19: одноцепная | M19: 1-20 кВ | N19: 0.0 | O19: 0.000 | P19: 0 | Q19: 0.000 | R19: 0.0 | S19: 0.000 | T19: 0 | U19: 0.000 | V19: 0.0 | W19: 0.000 | X19: 0 | Y19: 0.000 | Z19: 10.0 | AA19: 0.356 | AB19: 15 | AC19: 6108.839
B20: 1 | C20: VL | D20: =ROW($D$17) -> 17 | F20: Удалить | G20: =$G$16 & (ROWS($G$18:G20)-2)+1&"." -> 1.2.
B21: 1
H22: Добавить
B23: 1
G24: 2. | H24: СТРОИТЕЛЬСТВО КАБЕЛЬНЫХ ЛИНИЙ ЭЛЕКТРОПЕРЕДАЧИ | O24: =SUM(O26:O29) -> 0.000 | P24: =SUM(P26:P29) -> 0.000 | Q24: =SUM(Q26:Q29) -> 0.000 | S24: =SUM(S26:S29) -> 0.000 | T24: =SUM(T26:T29) -> 0.000 | U24: =SUM(U26:U29) -> 0.000 | W24: =SUM(W26:W29) -> 0.000 | X24: =SUM(X26:X29) -> 0.000 | Y24: =SUM(Y26:Y29) -> 0.000 | AA24: =SUM(AA26:AA29) -> 0.060 | AB24: =SUM(AB26:AB29) -> 15.000 | AC24: =SUM(AC26:AC29) -> 900.498
H25: способ прокладки: | I25: количество жил: | J25: тип изоляции: | K25: сечение провода: | L25: количество кабелей в траншее, канале, туннеле или коллекторе, на галерее или эстакаде, труб в скважине: | M25: уровень напряжения:
B26: 1
C27: KL | D27: =ROW($D$25) -> 25 | E27: KL:6.2.1.1.2.2. | F27: Удалить | G27: =$G$24 & (ROWS($G$26:G27)-2)+1&"." -> 2.1. | H27: горизонтальное наклонное бурение | I27: многожильные | J27: резиновая и пластмассовая | K27: до 50 мм2 включительно | L27: два | M27: 1-10 кВ | N27: 0.0 | O27: 0.000 | P27: 0 | Q27: 0.000 | R27: 0.0 | S27: 0.000 | T27: 0 | U27: 0.000 | V27: 0.0 | W27: 0.000 | X27: 0 | Y27: 0.000 | Z27: 10.0 | AA27: 0.060 | AB27: 15 | AC27: 900.498
B28: 1 | C28: KL | D28: =ROW($D$25) -> 25 | F28: Удалить | G28: =$G$24 & (ROWS($G$26:G28)-2)+1&"." -> 2.2.
B29: 1
H30: Добавить
B31: 1
G32: 3. | H32: СТРОИТЕЛЬСТВО ПУНКТОВ СЕКЦИОНИРОВАНИЯ (РЕКЛОУЗЕРОВ, РАСПРЕДЕЛИТЕЛЬНЫХ ПУНКТОВ, ПЕРЕКЛЮЧАТЕЛЬНЫХ ПУНКТОВ) | O32: =SUM(O34:O36) -> 0.000 | P32: =SUM(P34:P36) -> 0.000 | Q32: =SUM(Q34:Q36) -> 0.000 | S32: =SUM(S34:S36) -> 0.000 | T32: =SUM(T34:T36) -> 0.000 | U32: =SUM(U34:U36) -> 0.000 | W32: =SUM(W34:W36) -> 0.000 | X32: =SUM(X34:X36) -> 0.000 | Y32: =SUM(Y34:Y36) -> 0.000 | AA32: =SUM(AA34:AA36) -> 0.000 | AB32: =SUM(AB34:AB36) -> 0.000 | AC32: =SUM(AC34:AC36) -> 0.000
H33: пункт секционирования: | I33: номинальный ток: | K33: уровень напряжения:
B34: 1
B35: 1 | C35: PS | D35: =ROW($D$33) -> 33 | F35: Удалить | G35: =$G$32 & (ROWS($G$34:G35)-2)+1&"." -> 3.1.
B36: 1
H37: Добавить
B38: 1
G39: 4. | H39: СТРОИТЕЛЬСТВО ТРАНСФОРМАТОРНЫХ ПОДСТАНЦИЙ (ТП), ЗА ИСКЛЮЧЕНИЕМ РАСПРЕДЕЛИТЕЛЬНЫХ ТРАНСФОРМАТОРНЫХ ПОДСТАНЦИЙ (РТП), С УРОВНЕМ НАПРЯЖЕНИЯ ДО 35 КВ | O39: =SUM(O41:O44) -> 0.000 | P39: =SUM(P41:P44) -> 0.000 | Q39: =SUM(Q41:Q44) -> 0.000 | S39: =SUM(S41:S44) -> 0.000 | T39: =SUM(T41:T44) -> 0.000 | U39: =SUM(U41:U44) -> 0.000 | W39: =SUM(W41:W44) -> 0.000 | X39: =SUM(X41:X44) -> 0.000 | Y39: =SUM(Y41:Y44) -> 0.000 | AA39: =SUM(AA41:AA44) -> 1.000 | AB39: =SUM(AB41:AB44) -> 15.000 | AC39: =SUM(AC41:AC44) -> 443.340
H40: уровень напряжения: | I40: количество трансформаторов: | J40: трансформаторная мощность: | K40: тип трансформаторной подстанции:
B41: 1
C42: TS | D42: =ROW($D$40) -> 40 | E42: TS:2.1.1.1. | F42: Удалить | G42: =$G$39 & (ROWS($G$41:G42)-2)+1&"." -> 4.1. | H42: 10/0,4 кВ | I42: однотрансформаторные | J42: до 25 кВА включительно | K42: столбовой/мачтовый | N42: 0.0 | O42: 0.000 | P42: 0 | Q42: 0.000 | R42: 0.0 | S42: 0.000 | T42: 0 | U42: 0.000 | V42: 0.0 | W42: 0.000 | X42: 0 | Y42: 0.000 | Z42: 10.0 | AA42: 1.000 | AB42: 15 | AC42: 443.340
B43: 1 | C43: TS | D43: =ROW($D$40) -> 40 | F43: Удалить | G43: =$G$39 & (ROWS($G$41:G43)-2)+1&"." -> 4.2.
B44: 1
H45: Добавить
B46: 1
G47: 5. | H47: СТРОИТЕЛЬСТВО РАСПРЕДЕЛИТЕЛЬНЫХ ТРАНСФОРМАТОРНЫХ ПОДСТАНЦИЙ (РТП), С УРОВНЕМ НАПРЯЖЕНИЯ ДО 35 КВ | O47: =SUM(O49:O51) -> 0.000 | P47: =SUM(P49:P51) -> 0.000 | Q47: =SUM(Q49:Q51) -> 0.000 | S47: =SUM(S49:S51) -> 0.000 | T47: =SUM(T49:T51) -> 0.000 | U47: =SUM(U49:U51) -> 0.000 | W47: =SUM(W49:W51) -> 0.000 | X47: =SUM(X49:X51) -> 0.000 | Y47: =SUM(Y49:Y51) -> 0.000 | AA47: =SUM(AA49:AA51) -> 0.000 | AB47: =SUM(AB49:AB51) -> 0.000 | AC47: =SUM(AC49:AC51) -> 0.000
H48: количество трансформаторов: | I48: трансформаторная мощность: | J48: уровень напряжения:
B49: 1
B50: 1 | C50: RTP | D50: =ROW($D$48) -> 48 | F50: Удалить | G50: =$G$47 & (ROWS($G$49:G50)-2)+1&"." -> 5.1.
B51: 1
H52: Добавить
B53: 1
G54: 6. | H54: СТРОИТЕЛЬСТВО ПОДСТАНЦИЙ УРОВНЕМ НАПРЯЖЕНИЯ 35 КВ И ВЫШЕ (ПС) | O54: =SUM(O56:O58) -> 0.000 | P54: =SUM(P56:P58) -> 0.000 | Q54: =SUM(Q56:Q58) -> 0.000 | S54: =SUM(S56:S58) -> 0.000 | T54: =SUM(T56:T58) -> 0.000 | U54: =SUM(U56:U58) -> 0.000 | W54: =SUM(W56:W58) -> 0.000 | X54: =SUM(X56:X58) -> 0.000 | Y54: =SUM(Y56:Y58) -> 0.000 | AA54: =SUM(AA56:AA58) -> 0.000 | AB54: =SUM(AB56:AB58) -> 0.000 | AC54: =SUM(AC56:AC58) -> 0.000
H55: количество трансформаторов: | I55: трансформаторная мощность: | J55: уровень напряжения:
B56: 1
B57: 1 | C57: SP | D57: =ROW($D$55) -> 55 | F57: Удалить | G57: =$G$54 & (ROWS($G$56:G57)-2)+1&"." -> 6.1.
B58: 1
H59: Добавить
B60: 1
G61: 7. | H61: ОБЕСПЕЧЕНИЕ СРЕДСТВАМИ КОММЕРЧЕСКОГО УЧЕТА ЭЛЕКТРИЧЕСКОЙ ЭНЕРГИИ (МОЩНОСТИ) | O61: =SUM(O63:O65) -> 0.000 | P61: =SUM(P63:P65) -> 0.000 | Q61: 0.000 | S61: 0.000 | T61: 0.000 | U61: 0.000 | W61: 0.000 | X61: 0.000 | Y61: 0.000 | AA61: 0.000 | AB61: 0.000 | AC61: 0.000
H62: количество фаз: | I62: тип включения: | J62: уровень напряжения:
B63: 1
B64: 1 | C64: SKU | D64: =ROW($D$62) -> 62 | F64: Удалить | G64: =$G$61 & (ROWS($G$63:G64)-2)+1&"." -> 7.1.
B65: 1
H66: Добавить
B67: 1
G68: * - случае если в субъекте Российской Федерации за 3 предыдущих года не осуществлялось строительство тех объектов электросетевого хозяйства, в отношении которых устанавливаются стандартизированные тарифные ставки либо не осуществлялось обеспечение средствами коммерческого учета электрической энергии (мощности), расчет ставок может производиться исходя из данных за два предыдущих года, в случае отсутствия данных за два года - за предыдущий год, а при отсутствии данных за три года - по планируемым расходам, определенным по сметам, выполненным с применением сметных нормативов.
A69: ddShPr12Cont_rstop

Sheet Прил. № 2.1 (год-3)
A1: Приложение № 2.1 к Методическим указаниям по определению размера платы за технологическое присоединение к электрическим сетям
A2: ="Расходы на выполнение мероприятий по технологическому присоединению, предусмотренных пунктами 'а' и 'в' пункта 16 Методических указаний за " &IF(Титульный!C12="","--- выберите период на листе Титульный ---",(Титульный!C12-3)) & " год" -> Расходы на выполнение мероприятий по технологическому присоединению, предусмотренных пунктами 'а' и 'в' пункта 16 Методических указаний за 2018 год
A3: № п/п | B3: Наименование мероприятий | C3: ="Год формирования расходов (согласно учетной политике сетевой организации) за " &IF(Титульный!C12="","--- выберите период на листе Титульный ---",(Титульный!C12-3)) & " год" -> Год формирования расходов (согласно учетной политике сетевой организации) за 2018 год
C4: Информация для расчета стандартизированной тарифной ставки С1 с учетом дифференциации по уровням напряжения и максимальной мощности | R4: расходы на одно присоединение (руб. на 1 ТП)
C5: расходы согласно Приложению № 3 по каждому мероприятию (тыс. руб.) | H5: количество технологических присоединений (шт.) | M5: объем максимальной мощности (кВт) | Q5: Итого расходы на одно присоединение (тыс.руб. на 1 ТП) (гр.7/ гр.12)
C6: до 20 кВ включительно | E6: свыше 20 кВ | G6: Итого (гр.3+гр.4+гр.5 +гр.6) | H6: до 20 кВ включительно | J6: свыше 20 кВ | L6: Итого (гр.8+гр.9+гр.10+гр.11) | M6: до 20 кВ включительно | O6: свыше 20 кВ | R6: до 35 кВ | T6: свыше 35 кВ включительно
C7: до 670 кВт | D7: свыше 670 кВт включительно | E7: до 670 кВт | F7: свыше 670 кВт включительно | H7: до 670 кВт | I7: свыше 670 кВт включительно | J7: до 670 кВт | K7: свыше 670 кВт включительно | M7: до 670 кВт | N7: свыше 670 кВт включительно | O7: до 670 кВт | P7: свыше 670 кВт включительно | R7: до 8900 кВт | S7: свыше 8900 кВт включительно | T7: до 8900 кВт | U7: свыше 8900 кВт включительно
A8: 1 | B8: 2 | C8: 3 | D8: 4 | E8: 5 | F8: 6 | G8: 7 | H8: 8 | I8: 9 | J8: 10 | K8: 11 | L8: 12 | M8: 13 | N8: 14 | O8: 15 | P8: 16 | Q8: 17 | R8: 15 | S8: 16 | T8: 17 | U8: 18
A9: 1 | B9: Подготовка и выдача сетевой организацией технических условий заявителю | C9: 0.31999 | D9: 0 | E9: 0 | F9: 0 | G9: =C9+D9+E9+F9 -> 0.31999 | H9: 1 | I9: 0 | J9: 0 | K9: 0 | L9: =H9+I9+J9+K9 -> 1 | M9: 10 | N9: 0 | O9: 0 | P9: 0 | Q9: =IF(L9=0,0, G9/L9) -> 0.31999 | R9: =IF(H9=0,0,C9/H9) -> 0.31999 | S9: 0 | T9: 0 | U9: 0
A10: 2 | B10: Проверка сетевой организацией выполнения заявителем технических условий | C10: - | D10: - | E10: - | F10: - | G10: - | H10: - | I10: - | J10: - | K10: - | L10: - | M10: - | N10: - | O10: - | P10: - | Q10: -
A11: 3 | B11: Итого | C11: =C9+C10 ->  | D11: =D9+D10 -> 
A12: 2.1 | B12: Выдача сетевой организацией акта об осуществлении технологического присоединения заявителям, указанным в пунктах 12(1) и 14 Правил технологического присоединения, кроме случаев, если технологическое присоединение энергопринимающих устройств таких заявителей осуществляется на уровне напряжения выше 0,4 кВ | C12: 0.64969 | D12: 0 | E12: 0 | F12: 0 | G12: =C12+D12+E12+F12 -> 0.64969 | H12: 1 | I12: 0 | J12: 0 | K12: 0 | L12: =H12+I12+J12+K12 -> 1 | M12: 10 | N12: 0 | O12: 0 | P12: 0 | Q12: =IF(L12=0,0, G12/L12) -> 0.64969 | R12: =IF(H12=0,0,C12/H12) -> 0.64969 | S12: 0 | T12: 0 | U12: 0
A13: 2.2 | B13: Проверка сетевой организацией выполнения технических условий заявителями (за исключением заявителей, указанных в пункте 2.1 таблицы) | C13: 0 | D13: 0 | E13: 0 | F13: 0 | G13: =C13+D13+E13+F13 -> 0 | H13: 0 | I13: 0 | J13: 0 | K13: 0 | L13: =H13+I13+J13+K13 -> 0 | M13: 0 | N13: 0 | O13: 0 | P13: 0 | Q13: =IF(L13=0,0, G13/L13) -> 0 | R13: 0 | S13: 0 | T13: 0 | U13: 0

Sheet Прил. № 2.2 (год-2)
A1: Приложение № 2.2 к Методическим указаниям по определению размера платы за технологическое присоединение к электрическим сетям
A2: ="Расходы на выполнение мероприятий по технологическому присоединению, предусмотренных пунктами 'а' и 'в' пункта 16 Методических указаний за " &IF(Титульный!C12="","--- выберите период на листе Титульный ---",(Титульный!C12-2)) & " год" -> Расходы на выполнение мероприятий по технологическому присоединению, предусмотренных пунктами 'а' и 'в' пункта 16 Методических указаний за 2019 год
A3: № п/п | B3: Наименование мероприятий | C3: ="Год формирования расходов (согласно учетной политике сетевой организации) за " &IF(Титульный!C12="","--- выберите период на листе Титульный ---",(Титульный!C12-2)) & " год" -> Год формирования расходов (согласно учетной политике сетевой организации) за 2019 год
C4: Информация для расчета стандартизированной тарифной ставки С1 с учетом дифференциации по уровням напряжения и максимальной мощности | R4: расходы на одно присоединение (руб. на 1 ТП)
C5: расходы согласно Приложению № 3 по каждому мероприятию (тыс. руб.) | H5: количество технологических присоединений (шт.) | M5: объем максимальной мощности (кВт) | Q5: Итого расходы на одно присоединение (тыс.руб. на 1 ТП) (гр.7/ гр.12)
C6: до 20 кВ включительно | E6: свыше 20 кВ | G6: Итого (гр.3+гр.4+гр.5 +гр.6) | H6: до 20 кВ включительно | J6: свыше 20 кВ | L6: Итого (гр.8+гр.9+гр.10+гр.11) | M6: до 20 кВ включительно | O6: свыше 20 кВ | R6: до 35 кВ | T6: свыше 35 кВ включительно
C7: до 670 кВт | D7: свыше 670 кВт включительно | E7: до 670 кВт | F7: свыше 670 кВт включительно | H7: до 670 кВт | I7: свыше 670 кВт включительно | J7: до 670 кВт | K7: свыше 670 кВт включительно | M7: до 670 кВт | N7: свыше 670 кВт включительно | O7: до 670 кВт | P7: свыше 670 кВт включительно | R7: до 8900 кВт | S7: свыше 8900 кВт включительно | T7: до 8900 кВт | U7: свыше 8900 кВт включительно
A8: 1 | B8: 2 | C8: 3 | D8: 4 | E8: 5 | F8: 6 | G8: 7 | H8: 8 | I8: 9 | J8: 10 | K8: 11 | L8: 12 | M8: 13 | N8: 14 | O8: 15 | P8: 16 | Q8: 17 | R8: 15 | S8: 16 | T8: 17 | U8: 18
A9: 1 | B9: Подготовка и выдача сетевой организацией технических условий заявителю | C9: 4.23728 | D9: 0 | E9: 0 | F9: 0 | G9: =C9+D9+E9+F9 -> 4.23728 | H9: 1 | I9: 0 | J9: 0 | K9: 0 | L9: =H9+I9+J9+K9 -> 1 | M9: 221 | N9: 0 | O9: 0 | P9: 0 | Q9: =IF(L9=0,0, G9/L9) -> 4.23728 | R9: =IF(H9=0,0,C9/H9) -> 4.23728 | S9: 0 | T9: 0 | U9: 0
A10: 2 | B10: Проверка сетевой организацией выполнения заявителем технических условий | C10: - | D10: - | E10: - | F10: - | G10: - | H10: - | I10: - | J10: - | K10: - | L10: - | M10: - | N10: - | O10: - | P10: - | Q10: -
A11: 3 | B11: Итого | C11: =C9+C10 ->  | D11: =D9+D10 -> 
A12: 2.1 | B12: Выдача сетевой организацией акта об осуществлении технологического присоединения заявителям, указанным в пунктах 12(1) и 14 Правил технологического присоединения, кроме случаев, если технологическое присоединение энергопринимающих устройств таких заявителей осуществляется на уровне напряжения выше 0,4 кВ | C12: 0 | D12: 0 | E12: 0 | F12: 0 | G12: =C12+D12+E12+F12 -> 0 | H12: 0 | I12: 0 | J12: 0 | K12: 0 | L12: =H12+I12+J12+K12 -> 0 | M12: 0 | N12: 0 | O12: 0 | P12: 0 | Q12: =IF(L12=0,0, G12/L12) -> 0 | R12: =IF(H12=0,0,C12/H12) -> 0 | S12: 0 | T12: 0 | U12: 0
A13: 2.2 | B13: Проверка сетевой организацией выполнения технических условий заявителями (за исключением заявителей, указанных в пункте 2.1 таблицы) | C13: 2.81426 | D13: 0 | E13: 0 | F13: 0 | G13: =C13+D13+E13+F13 -> 2.81426 | H13: 1 | I13: 0 | J13: 0 | K13: 0 | L13: =H13+I13+J13+K13 -> 1 | M13: 221 | N13: 0 | O13: 0 | P13: 0 | Q13: =IF(L13=0,0, G13/L13) -> 2.81426 | R13: 2.81426 | S13: 0 | T13: 0 | U13: 0

Sheet Прил. № 2.3 (год-1)
A1: Приложение № 2.3 к Методическим указаниям по определению размера платы за технологическое присоединение к электрическим сетям
A2: ="Расходы на выполнение мероприятий по технологическому присоединению, предусмотренных пунктами 'а' и 'в' пункта 16 Методических указаний за " &IF(Титульный!C12="","--- выберите период на листе Титульный ---",(Титульный!C12-1)) & " год" -> Расходы на выполнение мероприятий по технологическому присоединению, предусмотренных пунктами 'а' и 'в' пункта 16 Методических указаний за 2020 год
A3: № п/п | B3: Наименование мероприятий | C3: ="Год формирования расходов (согласно учетной политике сетевой организации) за " &IF(Титульный!C12="","--- выберите период на листе Титульный ---",(Титульный!C12-1)) & " год" -> Год формирования расходов (согласно учетной политике сетевой организации) за 2020 год
C4: Информация для расчета стандартизированной тарифной ставки С1 с учетом дифференциации по уровням напряжения и максимальной мощности | R4: расходы на одно присоединение (руб. на 1 ТП)
C5: расходы согласно Приложению № 3 по каждому мероприятию (тыс. руб.) | H5: количество технологических присоединений (шт.) | M5: объем максимальной мощности (кВт) | Q5: Итого расходы на одно присоединение (тыс.руб. на 1 ТП) (гр.7/ гр.12)
C6: до 20 кВ включительно | E6: свыше 20 кВ | G6: Итого (гр.3+гр.4+гр.5 +гр.6) | H6: до 20 кВ включительно | J6: свыше 20 кВ | L6: Итого (гр.8+гр.9+гр.10+гр.11) | M6: до 20 кВ включительно | O6: свыше 20 кВ | R6: до 35 кВ | T6: свыше 35 кВ включительно
C7: до 670 кВт | D7: свыше 670 кВт включительно | E7: до 670 кВт | F7: свыше 670 кВт включительно | H7: до 670 кВт | I7: свыше 670 кВт включительно | J7: до 670 кВт | K7: свыше 670 кВт включительно | M7: до 670 кВт | N7: свыше 670 кВт включительно | O7: до 670 кВт | P7: свыше 670 кВт включительно | R7: до 8900 кВт | S7: свыше 8900 кВт включительно | T7: до 8900 кВт | U7: свыше 8900 кВт включительно
A8: 1 | B8: 2 | C8: 3 | D8: 4 | E8: 5 | F8: 6 | G8: 7 | H8: 8 | I8: 9 | J8: 10 | K8: 11 | L8: 12 | M8: 13 | N8: 14 | O8: 15 | P8: 16 | Q8: 17 | R8: 15 | S8: 16 | T8: 17 | U8: 18
A9: 1 | B9: Подготовка и выдача сетевой организацией технических условий заявителю | C9: 0 | D9: 0 | E9: 0 | F9: 0 | G9: =C9+D9+E9+F9 -> 0 | H9: 0 | I9: 0 | J9: 0 | K9: 0 | L9: =H9+I9+J9+K9 -> 0 | M9: 0 | N9: 0 | O9: 0 | P9: 0 | Q9: =IF(L9=0,0, G9/L9) -> 0 | R9: =IF(H9=0,0,C9/H9) -> 0 | S9: 0 | T9: 0 | U9: 0
A10: 2 | B10: Проверка сетевой организацией выполнения заявителем технических условий | C10: - | D10: - | E10: - | F10: - | G10: - | H10: - | I10: - | J10: - | K10: - | L10: - | M10: - | N10: - | O10: - | P10: - | Q10: -
A11: 3 | B11: Итого | C11: =C9+C10 ->  | D11: =D9+D10 -> 
A12: 2.1 | B12: Выдача сетевой организацией акта об осуществлении технологического присоединения заявителям, указанным в пунктах 12(1) и 14 Правил технологического присоединения, кроме случаев, если технологическое присоединение энергопринимающих устройств таких заявителей осуществляется на уровне напряжения выше 0,4 кВ | C12: 0 | D12: 0 | E12: 0 | F12: 0 | G12: =C12+D12+E12+F12 -> 0 | H12: 0 | I12: 0 | J12: 0 | K12: 0 | L12: =H12+I12+J12+K12 -> 0 | M12: 0 | N12: 0 | O12: 0 | P12: 0 | Q12: =IF(L12=0,0, G12/L12) -> 0 | R12: =IF(H12=0,0,C12/H12) -> 0 | S12: 0 | T12: 0 | U12: 0
A13: 2.2 | B13: Проверка сетевой организацией выполнения технических условий заявителями (за исключением заявителей, указанных в пункте 2.1 таблицы) | C13: 0 | D13: 0 | E13: 0 | F13: 0 | G13: =C13+D13+E13+F13 -> 0 | H13: 0 | I13: 0 | J13: 0 | K13: 0 | L13: =H13+I13+J13+K13 -> 0 | M13: 0 | N13: 0 | O13: 0 | P13: 0 | Q13: =IF(L13=0,0, G13/L13) -> 0 | R13: 0 | S13: 0 | T13: 0 | U13: 0

Sheet Прил. № 3.1 ('а' п.16)
A1: Приложение № 3.1 к Методическим указаниям по определению размера платы за технологическое присоединение к электрическим сетям
A2: ="Расчет фактических расходов на выполнение мероприятий по технологическому присоединению, связанных с подготовкой и выдачей сетевой организацией технических условий заявителю, предусмотренных подпунктом 'а' пункта 16 Методических указаний за " &IF(Титульный!C12="","--- выберите период на листе Титульный ---",(Титульный!C12-3) & "–" & (Титульный!C12-1) ) & " годы" -> Расчет фактических расходов на выполнение мероприятий по технологическому присоединению, связанных с подготовкой и выдачей сетевой организацией технических условий заявителю, предусмотренных подпунктом 'а' пункта 16 Методических указаний за 2018–2020 годы
A3: № п/п | B3: Показатели | C3: =CONCATENATE("Данные за " &IF(Титульный!C12="","--- выберите период на листе Титульный ---",(Титульный!C12-1)) & " год,", CHAR(10)," тыс. рублей") -> Данные за 2020 год, тыс. рублей | D3: =CONCATENATE("Данные за " &IF(Титульный!C12="","--- выберите период на листе Титульный ---",(Титульный!C12-2)) & " год,", CHAR(10)," тыс. рублей") -> Данные за 2019 год, тыс. рублей | E3: =CONCATENATE("Данные за " &IF(Титульный!C12="","--- выберите период на листе Титульный ---",(Титульный!C12-3)) & " год,", CHAR(10)," тыс. рублей") -> Данные за 2018 год, тыс. рублей | F3: Итого, тыс. рублей
A4: 1 | B4: 2 | C4: 3 | D4: 4 | E4: 5 | F4: 6
A5: 1 | B5: Расходы по выполнению мероприятий по технологическому присоединению, всего | C5: =C6+C7+C8+C9+C10+C19 -> 0.000 | D5: =D6+D7+D8+D9+D10+D19 -> 4.237 | E5: =E6+E7+E8+E9+E10+E19 -> 0.320 | F5: =C5+D5+E5 -> 4.557
A6: 1.1 | B6: Вспомогательные материалы | C6: 0.000 | D6: 0.000 | E6: 0.000 | F6: =C6+D6+E6 -> 0.000
A7: 1.2 | B7: Энергия на хозяйственные нужды | C7: 0.000 | D7: 0.000 | E7: 0.000 | F7: 0.000
A8: 1.3 | B8: Оплата труда ППП | C8: 0.000 | D8: =3668.65/1000 -> 3.669 | E8: 0.277 | F8: 3.946
A9: 1.4 | B9: Отчисления на страховые взносы | C9: 0.000 | D9: =553.95/1000 -> 0.554 | E9: 0.042 | F9: 0.596
A10: 1.5 | B10: Прочие расходы, всего, в том числе: | C10: =SUM(C11:C13) -> 0.000 | D10: =SUM(D11:D13) -> 0.015 | E10: =SUM(E11:E13) -> 0.001 | F10: 0.016
A11: 1.5.1 | B11: работы и услуги производственного характера | C11: 0.000 | D11: 0.000 | E11: 0.000 | F11: 0.000
A12: 1.5.2 | B12: налоги и сборы, уменьшающие налогооблагаемую базу на прибыль организаций, всего | C12: 0.000 | D12: 0.000 | E12: 0.000 | F12: 0.000
A13: 1.5.3 | B13: работы и услуги непроизводственного характера, в том числе: | C13: =SUM(C14:C18) -> 0.000 | D13: =SUM(D14:D18) -> 0.015 | E13: =SUM(E14:E18) -> 0.001 | F13: 0.016
A14: 1.5.3.1 | B14: услуги связи | C14: 0.000 | D14: 0.000 | E14: 0.000 | F14: 0.000
A15: 1.5.3.2 | B15: расходы на охрану и пожарную безопасность | C15: 0.000 | D15: 0.000 | E15: 0.000 | F15: 0.000
A16: 1.5.3.3 | B16: расходы на информационное обслуживание, иные услуги, связанные с деятельностью по технологическому присоединению | C16: 0.000 | D16: 0.000 | E16: 0.000 | F16: 0.000
A17: 1.5.3.4 | B17: плата за аренду имущества | C17: 0.000 | D17: 0.000 | E17: 0.000 | F17: 0.000
A18: 1.5.3.5 | B18: другие прочие расходы, связанные с производством и реализацией | C18: 0.000 | D18: =14.68/1000 -> 0.015 | E18: 0.001 | F18: 0.016
A19: 1.6 | B19: Внереализованные расходы, всего | C19: =SUM(C20:C23) -> 0.000 | D19: =SUM(D20:D23) -> 0.000 | E19: =SUM(E20:E23) -> 0.000 | F19: 0.000
A20: 1.6.1 | B20: расходы на услуги банков | C20: 0.000 | D20: 0.000 | E20: 0.000 | F20: 0.000
A21: 1.6.2 | B21: % за пользование кредитом | C21: 0.000 | D21: 0.000 | E21: 0.000 | F21: 0.000
A22: 1.6.3 | B22: прочие обоснованные расходы | C22: 0.000 | D22: 0.000 | E22: 0.000 | F22: 0.000
A23: 1.6.4 | B23: денежные выплаты социального характера ( по Коллективному договору) | C23: 0.000 | D23: 0.000 | E23: 0.000 | F23: 0.000

Sheet Прил. № 3.2 ('в' п.16)
A1: Приложение № 3.2 к Методическим указаниям по определению размера платы за технологическое присоединение к электрическим сетям
A2: ="Расчет фактических расходов на выполнение мероприятий по технологическому присоединению, связанных с проверкой сетевой организацией выполнения заявителем технических условий, предусмотренных подпунктом 'в' пункта 16 Методических указаний за " &IF(Титульный!C12="","--- выберите период на листе Титульный ---",(Титульный!C12-3) & "–" & (Титульный!C12-1) ) & " годы" -> Расчет фактических расходов на выполнение мероприятий по технологическому присоединению, связанных с проверкой сетевой организацией выполнения заявителем технических условий, предусмотренных подпунктом 'в' пункта 16 Методических указаний за 2018–2020 годы
A3: № п/п | B3: Показатели | C3: =CONCATENATE("Данные за " &IF(Титульный!C12="","--- выберите период на листе Титульный ---",(Титульный!C12-1)) & " год,", CHAR(10)," тыс. рублей") -> Данные за 2020 год, тыс. рублей | D3: =CONCATENATE("Данные за " &IF(Титульный!C12="","--- выберите период на листе Титульный ---",(Титульный!C12-2)) & " год,", CHAR(10)," тыс. рублей") -> Данные за 2019 год, тыс. рублей | E3: =CONCATENATE("Данные за " &IF(Титульный!C12="","--- выберите период на листе Титульный ---",(Титульный!C12-3)) & " год,", CHAR(10)," тыс. рублей") -> Данные за 2018 год, тыс. рублей | F3: Итого, тыс. рублей
A4: 1 | B4: 2 | C4: 3 | D4: 4 | E4: 5 | F4: 6
A5: 1 | B5: Расходы по выполнению мероприятий по технологическому присоединению, всего | C5: =C6+C7+C8+C9+C10+C19 -> 0.000 | D5: =D6+D7+D8+D9+D10+D19 -> 2.814 | E5: =E6+E7+E8+E9+E10+E19 -> 0.650 | F5: =C5+D5+E5 -> 3.464
A6: 1.1 | B6: Вспомогательные материалы | C6: 0.000 | D6: 0.000 | E6: 0.000 | F6: =C6+D6+E6 -> 0.000
A7: 1.2 | B7: Энергия на хозяйственные нужды | C7: 0.000 | D7: 0.000 | E7: 0.000 | F7: 0.000
A8: 1.3 | B8: Оплата труда ППП | C8: 0.000 | D8: =1156.25/1000 -> 1.156 | E8: 0.563 | F8: 1.719
A9: 1.4 | B9: Отчисления на страховые взносы | C9: 0.000 | D9: =313.37/1000 -> 0.313 | E9: 0.085 | F9: 0.398
A10: 1.5 | B10: Прочие расходы, всего, в том числе: | C10: =SUM(C11:C13) -> 0.000 | D10: =SUM(D11:D13) -> 1.345 | E10: =SUM(E11:E13) -> 0.002 | F10: 1.347
A11: 1.5.1 | B11: работы и услуги производственного характера | C11: 0.000 | D11: =1340/1000 -> 1.340 | E11: 0.000 | F11: 1.340
A12: 1.5.2 | B12: налоги и сборы, уменьшающие налогооблагаемую базу на прибыль организаций, всего | C12: 0.000 | D12: 0.000 | E12: 0.000 | F12: 0.000
A13: 1.5.3 | B13: работы и услуги непроизводственного характера, в том числе: | C13: =SUM(C14:C18) -> 0.000 | D13: =SUM(D14:D18) -> 0.005 | E13: =SUM(E14:E18) -> 0.002 | F13: 0.007
A14: 1.5.3.1 | B14: услуги связи | C14: 0.000 | D14: 0.000 | E14: 0.000 | F14: 0.000
A15: 1.5.3.2 | B15: расходы на охрану и пожарную безопасность | C15: 0.000 | D15: 0.000 | E15: 0.000 | F15: 0.000
A16: 1.5.3.3 | B16: расходы на информационное обслуживание, иные услуги, связанные с деятельностью по технологическому присоединению | C16: 0.000 | D16: 0.000 | E16: 0.000 | F16: 0.000
A17: 1.5.3.4 | B17: плата за аренду имущества | C17: 0.000 | D17: 0.000 | E17: 0.000 | F17: 0.000
A18: 1.5.3.5 | B18: другие прочие расходы, связанные с производством и реализацией | C18: 0.000 | D18: =4.64/1000 -> 0.005 | E18: 0.002 | F18: 0.007
A19: 1.6 | B19: Внереализованные расходы, всего | C19: =SUM(C20:C23) -> 0.000 | D19: =SUM(D20:D23) -> 0.000 | E19: =SUM(E20:E23) -> 0.000 | F19: 0.000
A20: 1.6.1 | B20: расходы на услуги банков | C20: 0.000 | D20: 0.000 | E20: 0.000 | F20: 0.000
A21: 1.6.2 | B21: % за пользование кредитом | C21: 0.000 | D21: 0.000 | E21: 0.000 | F21: 0.000
A22: 1.6.3 | B22: прочие обоснованные расходы | C22: 0.000 | D22: 0.000 | E22: 0.000 | F22: 0.000
A23: 1.6.4 | B23: денежные выплаты социального характера ( по Коллективному договору) | C23: 0.000 | D23: 0.000 | E23: 0.000 | F23: 0.000

Sheet Прил. № 5.1 город
R11: Приложение № 5.1 к Методическим указаниям по определению размера платы за технологическое присоединение к электрическим сетям
A12: dd_hide/show | B12: hide | C12: range_name | D12: address_title | E12: address_svod | G12: Сведения о строительстве линий электропередачи, пунктов секционирования, а также об обеспечении средствами коммерческого учета электрической энергии (мощности) при технологическом присоединении энергопринимающих устройств максимальной мощностью менее 670 кВт и на уровне напряжения 20 кВ и менее (заполняется для территорий городских населенных пунктов)
G13: № п/п | H13: Объект электросетевого хозяйства/Средство коммерческого учета электрической энергии (мощности) | N13: Год ввода объекта 2018 | Q13: Год ввода объекта 2019 | T13: Год ввода объекта 2020
N14: уровень напряжения, кВ | O14: протяженность (для линий электропередачи), км. / количество (для пунктов секционирования, точек учета ээ), шт. | P14: присоединенная максимальная мощность (менее 670 кВт), кВт | Q14: уровень напряжения, кВ | R14: протяженность (для линий электропередачи), км. / количество (для пунктов секционирования, точек учета ээ), шт. | S14: присоединенная максимальная мощность (менее 670 кВт), кВт | T14: уровень напряжения, кВ | U14: протяженность (для линий электропередачи), км. / количество (для пунктов секционирования, точек учета ээ), шт. | V14: присоединенная максимальная мощность (менее 670 кВт), кВт
A15: ddShPr51_rstart | G15: 1 | H15: 2 | N15: 3 | O15: 4 | P15: 5 | Q15: 6 | R15: 7 | S15: 8 | T15: 9 | U15: 10 | V15: 11
G16: 1. | H16: СТРОИТЕЛЬСТВО ВОЗДУШНЫХ ЛИНИЙ ЭЛЕКТРОПЕРЕДАЧИ | O16: =SUM(O18:O20) -> 0.000 | P16: =SUM(P18:P20) -> 0.000 | R16: =SUM(R18:R20) -> 0.000 | S16: =SUM(S18:S20) -> 0.000 | U16: =SUM(U18:U20) -> 0.000 | V16: =SUM(V18:V20) -> 0.000
H17: тип опор: | I17: тип провода: | J17: материал провода: | K17: сечение провода: | L17: количество цепей: | M17: уровень напряжения:
B18: 1
B19: 1 | C19: VL | D19: =ROW($D$17) -> 17 | F19: Удалить | G19: =$G$16 & (ROWS($G$18:G19)-2)+1&"." -> 1.1.
B20: 1
H21: Добавить
B22: 1
G23: 2. | H23: СТРОИТЕЛЬСТВО КАБЕЛЬНЫХ ЛИНИЙ ЭЛЕКТРОПЕРЕДАЧИ | O23: =SUM(O25:O27) -> 0.000 | P23: =SUM(P25:P27) -> 0.000 | R23: =SUM(R25:R27) -> 0.000 | S23: =SUM(S25:S27) -> 0.000 | U23: =SUM(U25:U27) -> 0.000 | V23: =SUM(V25:V27) -> 0.000
H24: способ прокладки: | I24: количество жил: | J24: тип изоляции: | K24: сечение провода: | L24: количество кабелей в траншее, канале, туннеле или коллекторе, на галерее или эстакаде, труб в скважине: | M24: уровень напряжения:
B25: 1
B26: 1 | C26: KL | D26: =ROW($D$24) -> 24 | F26: Удалить | G26: =$G$23 & (ROWS($G$25:G26)-2)+1&"." -> 2.1.
B27: 1
H28: Добавить
B29: 1
G30: 3. | H30: СТРОИТЕЛЬСТВО ПУНКТОВ СЕКЦИОНИРОВАНИЯ (РЕКЛОУЗЕРОВ, РАСПРЕДЕЛИТЕЛЬНЫХ ПУНКТОВ, ПЕРЕКЛЮЧАТЕЛЬНЫХ ПУНКТОВ) | O30: =SUM(O32:O34) -> 0.000 | P30: =SUM(P32:P34) -> 0.000 | R30: =SUM(R32:R34) -> 0.000 | S30: =SUM(S32:S34) -> 0.000 | U30: =SUM(U32:U34) -> 0.000 | V30: =SUM(V32:V34) -> 0.000
H31: пункт секционирования: | I31: номинальный ток: | J31: количество ячеек в распределительном или переключательном пункте: | K31: уровень напряжения:
B32: 1
B33: 1 | C33: PS | D33: =ROW($D$31) -> 31 | F33: Удалить | G33: =$G$30 & (ROWS($G$32:G33)-2)+1&"." -> 3.1.
B34: 1
H35: Добавить
B36: 1
G37: 4. | H37: ОБЕСПЕЧЕНИЕ СРЕДСТВАМИ КОММЕРЧЕСКОГО УЧЕТА ЭЛЕКТРИЧЕСКОЙ ЭНЕРГИИ (МОЩНОСТИ) | O37: =SUM(O39:O41) -> 0.000 | P37: =SUM(P39:P41) -> 0.000 | R37: 0.000 | S37: 0.000 | U37: 0.000 | V37: 0.000
H38: количество фаз: | I38: тип включения: | J38: уровень напряжения:
B39: 1
B40: 1 | C40: SKU | D40: =ROW($D$38) -> 38 | F40: Удалить | G40: =$G$37 & (ROWS($G$39:G40)-2)+1&"." -> 4.1.
B41: 1
H42: Добавить
B43: 1
A44: ddShPr51_rstop

Sheet Прил. № 5.2 не город
R11: Приложение № 5.2 к Методическим указаниям по определению размера платы за технологическое присоединение к электрическим сетям
A12: dd_hide/show | B12: hide | C12: range_name | D12: address_title | E12: address_svod | G12: Сведения о строительстве линий электропередачи, пунктов секционирования, а также об обеспечении средствами коммерческого учета электрической энергии (мощности) при технологическом присоединении энергопринимающих устройств максимальной мощностью менее 670 кВт и на уровне напряжения 20 кВ и менее (заполняется для территорий, не относящихся к городским населенным пунктам)
G13: № п/п | H13: Объект электросетевого хозяйства/Средство коммерческого учета электрической энергии (мощности) | N13: Год ввода объекта 2018 | Q13: Год ввода объекта 2019 | T13: Год ввода объекта 2020
N14: уровень напряжения, кВ | O14: протяженность (для линий электропередачи), км. / количество (для пунктов секционирования, точек учета ээ), шт. | P14: присоединенная максимальная мощность (менее 670 кВт), кВт | Q14: уровень напряжения, кВ | R14: протяженность (для линий электропередачи), км. / количество (для пунктов секционирования, точек учета ээ), шт. | S14: присоединенная максимальная мощность (менее 670 кВт), кВт | T14: уровень напряжения, кВ | U14: протяженность (для линий электропередачи), км. / количество (для пунктов секционирования, точек учета ээ), шт. | V14: присоединенная максимальная мощность (менее 670 кВт), кВт
A15: ddShPr52_rstart | G15: 1 | H15: 2 | N15: 3 | O15: 4 | P15: 5 | Q15: 6 | R15: 7 | S15: 8 | T15: 9 | U15: 10 | V15: 11
G16: 1. | H16: СТРОИТЕЛЬСТВО ВОЗДУШНЫХ ЛИНИЙ ЭЛЕКТРОПЕРЕДАЧИ | O16: =SUM(O18:O20) -> 0.000 | P16: =SUM(P18:P20) -> 0.000 | R16: =SUM(R18:R20) -> 0.000 | S16: =SUM(S18:S20) -> 0.000 | U16: =SUM(U18:U20) -> 0.000 | V16: =SUM(V18:V20) -> 0.000
H17: тип опор: | I17: тип провода: | J17: материал провода: | K17: сечение провода: | L17: количество цепей: | M17: уровень напряжения:
B18: 1
B19: 1 | C19: VL | D19: =ROW($D$17) -> 17 | F19: Удалить | G19: =$G$16 & (ROWS($G$18:G19)-2)+1&"." -> 1.1.
B20: 1
H21: Добавить
B22: 1
G23: 2. | H23: СТРОИТЕЛЬСТВО КАБЕЛЬНЫХ ЛИНИЙ ЭЛЕКТРОПЕРЕДАЧИ | O23: =SUM(O25:O27) -> 0.000 | P23: =SUM(P25:P27) -> 0.000 | R23: =SUM(R25:R27) -> 0.000 | S23: =SUM(S25:S27) -> 0.000 | U23: =SUM(U25:U27) -> 0.000 | V23: =SUM(V25:V27) -> 0.000
H24: способ прокладки: | I24: количество жил: | J24: тип изоляции: | K24: сечение провода: | L24: количество кабелей в траншее, канале, туннеле или коллекторе, на галерее или эстакаде, труб в скважине: | M24: уровень напряжения:
B25: 1
B26: 1 | C26: KL | D26: =ROW($D$24) -> 24 | F26: Удалить | G26: =$G$23 & (ROWS($G$25:G26)-2)+1&"." -> 2.1.
B27: 1
H28: Добавить
B29: 1
G30: 3. | H30: СТРОИТЕЛЬСТВО ПУНКТОВ СЕКЦИОНИРОВАНИЯ (РЕКЛОУЗЕРОВ, РАСПРЕДЕЛИТЕЛЬНЫХ ПУНКТОВ, ПЕРЕКЛЮЧАТЕЛЬНЫХ ПУНКТОВ) | O30: =SUM(O32:O34) -> 0.000 | P30: =SUM(P32:P34) -> 0.000 | R30: =SUM(R32:R34) -> 0.000 | S30: =SUM(S32:S34) -> 0.000 | U30: =SUM(U32:U34) -> 0.000 | V30: =SUM(V32:V34) -> 0.000
H31: пункт секционирования: | I31: номинальный ток: | J31: количество ячеек в распределительном или переключательном пункте: | K31: уровень напряжения:
B32: 1
B33: 1 | C33: PS | D33: =ROW($D$31) -> 31 | F33: Удалить | G33: =$G$30 & (ROWS($G$32:G33)-2)+1&"." -> 3.1.
B34: 1
H35: Добавить
B36: 1
G37: 4. | H37: ОБЕСПЕЧЕНИЕ СРЕДСТВАМИ КОММЕРЧЕСКОГО УЧЕТА ЭЛЕКТРИЧЕСКОЙ ЭНЕРГИИ (МОЩНОСТИ) | O37: =SUM(O39:O41) -> 0.000 | P37: =SUM(P39:P41) -> 0.000 | R37: 0.000 | S37: 0.000 | U37: 0.000 | V37: 0.000
H38: количество фаз: | I38: тип включения: | J38: уровень напряжения:
B39: 1
B40: 1 | C40: SKU | D40: =ROW($D$38) -> 38 | F40: Удалить | G40: =$G$37 & (ROWS($G$39:G40)-2)+1&"." -> 4.1.
B41: 1
H42: Добавить
B43: 1
A44: ddShPr52_rstop

Sheet Проверка
B1: Сообщение | C1: Адрес | D1: Статус

Sheet Справочник (hidden)
B1: VL1 | C1: VL2 | D1: VL3 | E1: VL4 | F1: VL5 | G1: VL6 | J1: KL1 | K1: KL2 | L1: KL3 | M1: KL4 | N1: KL5 | O1: KL6 | R1: PS1 | S1: PS2 | T1: PS3 | U1: PS4 | W1: TS1 | X1: TS2 | Y1: TS3 | Z1: TS4 | AB1: RTP1 | AC1: RTP2 | AD1: RTP3 | AG1: SP1 | AH1: SP2 | AI1: SP3 | AL1: SKU1 | AM1: SKU2 | AN1: SKU3
B2: 1. ВЛ Воздушные линии | J2: 2. КЛ Кабельные линии | R2: 3. Пункты секционирования | W2: 4. ТП Трансформаторные подстанции | AB2: 5. РТП Распред. трансформаторные подстанции | AG2: 6. Подстанции | AL2: 7. СКУ Средства коммерческого учета
B3: строительство воздушных линий электропередачи | J3: строительство кабельных линий электропередачи | R3: строительство пунктов секционирования (реклоузеров, распределительных пунктов, переключательных пунктов) | W3: строительство трансформаторных подстанций (ТП), за исключением распределительных трансформаторных подстанций (РТП), с уровнем напряжения до 35 кВ | AB3: строительство распределительных трансформаторных подстанций (РТП) с уровнем напряжения до 35 кВ | AG3: строительство подстанций уровнем напряжения 35 кВ и выше | AL3: обеспечение средствами коммерческого учета электрической энергии (мощности)
B4: тип опор: | C4: тип провода: | D4: материал провода: | E4: сечение провода: | F4: количество цепей: | G4: уровень напряжения: | J4: способ прокладки: | K4: количество жил: | L4: тип изоляции: | M4: сечение провода: | N4: количество кабелей в траншее, канале, туннеле или коллекторе, на галерее или эстакаде, труб в скважине: | O4: уровень напряжения: | R4: пункт секционирования: | S4: номинальный ток: | T4: количество ячеек в распределительном или переключательном пункте: | U4: уровень напряжения: | W4: уровень напряжения: | X4: количество трансформаторов: | Y4: трансформаторная мощность: | Z4: тип трансформаторной подстанции: | AB4: количество трансформаторов: | AC4: трансформаторная мощность: | AD4: уровень напряжения: | AG4: количество трансформаторов: | AH4: трансформаторная мощность: | AI4: уровень напряжения: | AL4: количество фаз: | AM4: тип включения: | AN4: уровень напряжения:
B5: деревянные | C5: изолированный | D5: медный | E5: до 50 мм2 включительно | F5: одноцепная | G5: 0,4 кВ и ниже | J5: в траншеях | K5: одножильные | L5: резиновая и пластмассовая | M5: до 50 мм2 включительно | N5: один | O5: 0,4 кВ и ниже | R5: реклоузеры | S5: до 100 А включительно | T5: до 5 ячеек включительно | U5: 0,4 кВ и ниже | W5: 6/0,4 кВ | X5: однотрансформаторные | Y5: до 25 кВА включительно | Z5: столбовой/мачтовый | AB5: однотрансформаторные | AC5: до 25 кВА включительно | AD5: 6(10)/0,4 кВ | AG5: однотрансформаторные | AH5: до 6,3 МВА включительно | AI5: 35/6(10) кВ | AL5: однофазный | AM5: прямой | AN5: 0,4 кВ и ниже
B6: железобетонные опоры | C6: неизолированный | D6: стальной | E6: от 50 до 100 мм2 включительно | F6: двухцепная | G6: 1-20 кВ | J6: в блоках | K6: многожильные | L6: бумажная | M6: от 50 до 100 мм2 включительно | N6: два | O6: 1-10 кВ | R6: линейные разъединители | S6: от 100 до 250 А включительно | T6: от 5 до 10 ячеек включительно | U6: 1-20 кВ | W6: 10/0,4 кВ | X6: двухтрансформаторные | Y6: от 25 до 100 кВА включительно | Z6: шкафной или киосковый | AB6: двухтрансформаторные | AC6: от 25 до 100 кВА включительно | AD6: 20/0,4 кВ | AG6: двухтрансформаторные | AH6: от 6,3 до 10 МВА включительно | AI6: 35/0,4 кВ | AL6: трехфазный | AM6: полукосвенный | AN6: 1-20 кВ
B7: металлические опоры | D7: сталеалюминиевый | E7: от 100 до 200 мм2 включительно | G7: 27,5-60 кВ | J7: в каналах | M7: от 100 до 200 мм2 включительно | N7: три | O7: 15-20 кВ | R7: выключатели нагрузки, устанавливаемые вне трансформаторных подстанций и распределительных и переключательных пунктов (РП) | S7: от 250 до 500 А включительно | T7: от 10 до 15 ячеек включительно | U7: 35 кВ | W7: 20/0,4 кВ | Y7: от 100 до 250 кВА включительно | Z7: блочный | AC7: от 100 до 250 кВА включительно | AH7: от 10 до 16 МВА включительно | AI7: 110/35 кВ | AM7: косвенный | AN7: 35 кВ
B8: металлические опоры, за исключением многогранных | D8: алюминиевый | E8: от 200 до 500 мм2 включительно | G8: 110 кВ и выше | J8: в туннелях и коллекторах | M8: от 200 до 250 мм2 включительно | N8: четыре | O8: 27,5-60 кВ | R8: распределительные пункты (РП), за исключением комплектных распределительных устройств наружной установки (КРН, КРУН) | S8: от 500 до 1000 А включительно | T8: свыше 15 ячеек | U8: 110 кВ и выше | W8: 6/10 (10/6) кВ | Y8: от 250 до 400 кВА включительно | AC8: от 250 до 400 кВА включительно | AH8: от 16 до 25 МВА включительно | AI8: 110/6(10) кВ | AN8: 110 кВ и выше
B9: многогранные металлические опоры | E9: от 500 до 800 мм2 включительно | J9: в галереях и эстакадах | M9: от 250 до 300 мм2 включительно | N9: более четырех | O9: 110 кВ и выше | R9: комплектные распределительные устройства наружной установки (КРН, КРУН) | S9: свыше 1000 А | W9: 10/20 (20/10) кВ | Y9: от 400 до 1000 кВА включительно | AC9: от 400 до 1000 кВА включительно | AH9: от 25 до 32 МВА включительно | AI9: 110/35/6(10) кВ
E10: свыше 800 мм2 | J10: горизонтальное наклонное бурение | M10: от 300 до 400 мм2 включительно | R10: переключательные пункты | W10: 6/20 (20/6) кВ | Y10: от 1000 до 1250 кВА включительно | AC10: от 1000 до 1250 кВА включительно | AH10: от 32 до 40 МВА включительно
M11: от 400 до 500 мм2 включительно | Y11: от 1250 до 1600 кВА включительно | AC11: от 1250 до 1600 кВА включительно | AH11: от 40 до 63 МВА включительно
M12: от 500 до 800 мм2 включительно | Y12: от 1600 до 2000 кВА включительно | AC12: от 1600 до 2000 кВА включительно | AH12: от 63 до 80 МВА включительно
M13: свыше 800 мм2 | Y13: от 2000 до 2500 кВА включительно | AC13: от 2000 до 2500 кВА включительно | AH13: от 80 до 100 МВА включительно
Y14: от 2500 до 3150 кВА включительно | AC14: от 2500 до 3150 кВА включительно | AH14: свыше 100 МВА
Y15: от 3150 до 4000 кВА включительно | AC15: свыше 3150 кВА
Y16: свыше 4000 кВА
